[Event "Championnat du monde jeunes U10F"]
[Date "2024.11.15"]
[White "Meng, Miranda"]
[Black "Kuvandikova, Nafisa"]
[WhiteElo "1675"]
[BlackElo "1512"]
[Round "1.19"]
[Result "1-0"]
[TimeControl "5400+30"]

1. d4 {[%clk 1:30:58]} 1... Nf6 {[%clk 1:30:44]} 2. c4 {[%clk 1:31:21]} 2... c5
{[%clk 1:31:04]} 3. d5 {[%clk 1:31:45]} 3... e6 {[%clk 1:31:25]} 4. Nc3 {[%clk
1:32:09]} 4... exd5 {[%clk 1:31:27]} 5. cxd5 d6 {[%clk 1:31:53]} 6. e4 a6 {[%clk
1:32:10]} 7. Bd3 {[%clk 1:32:18]} 7... b5 {[%clk 1:32:21]} 8. a3 {[%clk
1:32:01]} 8... g6 9. Nf3 {[%clk 1:30:22]} 9... Bg7 {[%clk 1:31:55]} 10. h3
{[%clk 1:28:34]} 10... O-O {[%clk 1:31:36]} 11. O-O {[%clk 1:28:57]} 11... Re8
{[%clk 1:31:39]} 12. Re1 {[%clk 1:28:00]} 12... Nbd7 {[%clk 1:30:07]} 13. Bf4
Qc7 {[%clk 1:29:12]} 14. Rc1 {[%clk 1:23:59]} 14... c4 {[%clk 1:29:23]} 15. Bc2
{[%clk 1:23:25]} 15... Nc5 {[%clk 1:24:25]} 16. Nd4 {[%clk 1:32:03]} 16... Bb7
{[%clk 1:24:25]} 17. Bb1 {[%clk 1:32:03]} 17... Nh5 {[%clk 1:24:25]} 18. Be3
{[%clk 1:32:03]} 18... Nf6 {[%clk 1:18:06]} 19. f3 {[%clk 1:23:59]} 19... Rad8
{[%clk 1:12:26]} 20. b3 {[%clk 0:40:11]} 20... cxb3 21. Nxb3 {[%clk 0:40:18]}
21... Qe7 {[%clk 1:04:34]} 22. Nd4 {[%clk 0:40:15]} 22... Qc7 23. Nb3 {[%clk
0:40:18]} 23... Qe7 {[%clk 1:04:34]} 24. Nd4 {[%clk 0:40:15]} 24... Qc7 25. Nb3
{[%clk 0:40:18]} 25... Qe7 {[%clk 1:04:34]} 26. Nd4 {[%clk 0:40:15]} 26... Qc7
27. Nb3 {[%clk 0:40:18]} 27... Qe7 {[%clk 1:04:34]} 28. Nd4 {[%clk 0:40:15]}
28... Qc7 29. Nb3 {[%clk 0:40:18]} 29... Qe7 {[%clk 1:04:34]} 30. Nd4 {[%clk
0:40:15]} 30... Qc7 31. Nb3 {[%clk 0:40:18]} 31... Qe7 {[%clk 1:04:34]} 32. Nd4
{[%clk 0:40:15]} 32... Qc7 33. Nb3 {[%clk 0:40:18]} 33... Qe7 {[%clk 1:04:34]}
34. Nxc5 {[%clk 0:23:34]} 34... dxc5 {[%clk 1:04:20]} 35. Na2 {[%clk 0:21:36]}
35... c4 {[%clk 1:04:24]} 36. Bb6 {[%clk 0:20:28]} 36... Rd7 {[%clk 1:02:53]}
37. Be3 {[%clk 0:21:36]} 37... Rdd8 38. Bb6 {[%clk 0:20:28]} 38... Rd7 {[%clk
1:02:53]} 39. a4 {[%clk 0:19:22]} 39... Qd6 {[%clk 1:01:14]} 40. Bd4 {[%clk
0:18:10]} 40... Nh5 {[%clk 1:00:14]} 41. Bc5 Nf6 42. Bd4 {[%clk 0:18:10]} 42...
Nh5 {[%clk 1:00:14]} 43. Bxg7 {[%clk 0:16:57]} 43... Kxg7 44. Qd4+ {[%clk
0:16:15]} 44... Kg8 {[%clk 0:59:54]} 45. Qd1 {[%clk 0:16:10]} 45... Kg7 46. Qd4+
{[%clk 0:16:15]} 46... Kg8 {[%clk 0:59:54]} 47. Qd1 {[%clk 0:16:10]} 47... Kg7
48. Qd4+ {[%clk 0:16:15]} 48... Kg8 {[%clk 0:59:54]} 49. Qd1 {[%clk 0:16:10]}
49... Kg7 50. Qd4+ {[%clk 0:16:15]} 50... Kg8 {[%clk 0:59:54]} 51. Qd1 {[%clk
0:16:10]} 51... Kg7 52. Qd4+ {[%clk 0:16:15]} 52... Kg8 {[%clk 0:59:54]} 53. Qd1
{[%clk 0:16:10]} 53... Kg7 54. Qd4+ {[%clk 0:16:15]} 54... Kg8 {[%clk 0:59:54]}
55. Qd1 {[%clk 0:16:10]} 55... Kg7 56. Qd4+ {[%clk 0:16:15]} 56... Kg8 {[%clk
0:59:54]} 57. Bc2 {[%clk 0:14:42]} 57... Qg3 {[%clk 0:50:30]} 58. Qf2 {[%clk
0:13:59]} 58... Qg5 {[%clk 0:50:36]} 59. Qd4 {[%clk 0:14:42]} 59... Qg3 {[%clk
0:50:30]} 60. Qf2 {[%clk 0:13:59]} 60... Qg5 {[%clk 0:50:36]} 61. Qd4 {[%clk
0:14:42]} 61... Qg3 {[%clk 0:50:30]} 62. Qf2 {[%clk 0:13:59]} 62... Qg5 {[%clk
0:50:36]} 63. Rb1 {[%clk 0:12:38]} 63... Qg3 {[%clk 0:50:30]} 64. Rbc1 {[%clk
0:13:59]} 64... Qg5 {[%clk 0:50:36]} 65. Rb1 {[%clk 0:12:38]} 65... Qg3 {[%clk
0:50:30]} 66. Rbc1 {[%clk 0:13:59]} 66... Qg5 {[%clk 0:50:36]} 67. Rb1 {[%clk
0:12:38]} 67... Qg3 {[%clk 0:50:30]} 68. Rbc1 {[%clk 0:13:59]} 68... Qg5 {[%clk
0:50:36]} 69. Rb1 Nf4 {[%clk 0:47:50]} 70. Kh2 {[%clk 0:11:39]} 70... h6 71.
axb5 {[%clk 0:11:05]} 71... axb5 {[%clk 0:45:19]} 72. Rxb5 {[%clk 0:10:43]}
72... Bxd5 {[%clk 0:45:09]} 73. h4 {[%clk 0:09:48]} 73... Qe5 {[%clk 0:43:37]}
74. g3 {[%clk 0:09:35]} 74... Nd3 {[%clk 0:42:55]} 75. Bxd3 {[%clk 0:09:48]}
75... cxd3 {[%clk 0:43:14]} 76. Nb4 {[%clk 0:09:36]} 76... Rb8 {[%clk 0:34:08]}
77. Rxb8+ {[%clk 0:09:25]} 77... Qxb8 {[%clk 0:34:13]} 78. Nxd5 {[%clk 0:09:46]}
78... Rb7 {[%clk 0:34:01]} 79. Rd1 {[%clk 0:08:31]} 79... Rb2 {[%clk 0:32:36]}
80. Rd2 {[%clk 0:08:56]} 80... Rxd2 {[%clk 0:32:55]} 81. Qxd2 {[%clk 0:09:22]}
81... Qb3 {[%clk 0:33:06]} 82. Qf2 {[%clk 0:08:56]} 82... Qb8 83. Qd2 {[%clk
0:09:22]} 83... Qb3 {[%clk 0:33:06]} 84. Qf2 {[%clk 0:08:56]} 84... Qb8 85. Qd2
{[%clk 0:09:22]} 85... Qb3 {[%clk 0:33:06]} 86. Nf4 {[%clk 0:08:43]} 86... Qc2
{[%clk 0:33:21]} 87. Qxc2 {[%clk 0:09:05]} 87... dxc2 {[%clk 0:33:43]} 88. Nd3
{[%clk 0:09:35]} 1-0

[Variant "Standard"]
[Site "Europe Echecs"]

[Event "Championnat du monde jeunes U10F"]
[Date "2024.11.15"]
[White "Minzat, Victoria"]
[Black "Stoica, Melina-Theodora"]
[WhiteElo "1505"]
[BlackElo "1675"]
[Round "1.20"]
[Result "0-1"]
[TimeControl "5400+30"]

1. e4 {[%clk 1:30:58]} 1... c6 {[%clk 1:30:51]} 2. Nc3 {[%clk 1:31:13]} 2... d5
{[%clk 1:31:15]} 3. f3 {[%clk 1:31:25]} 3... d4 {[%clk 1:25:00]} 4. Nce2 {[%clk
1:31:49]} 4... e5 {[%clk 1:24:35]} 5. d3 {[%clk 1:31:53]} 5... Nf6 {[%clk
1:24:37]} 6. c3 {[%clk 1:32:14]} 6... c5 {[%clk 1:15:32]} 7. Nh3 {[%clk
1:31:20]} 7... Bxh3 {[%clk 1:05:19]} 8. gxh3 Nc6 {[%clk 1:05:10]} 9. Qb3 {[%clk
1:30:58]} 9... Qc7 {[%clk 0:58:13]} 10. f4 {[%clk 1:31:03]} 10... Bd6 {[%clk
0:47:31]} 11. f5 g6 {[%clk 0:20:38]} 12. fxg6 {[%clk 1:30:03]} 12... hxg6 {[%clk
0:20:48]} 13. Rg1 {[%clk 1:29:44]} 13... Be7 {[%clk 0:13:41]} 14. Bd2 {[%clk
1:29:20]} 14... Qb6 {[%clk 0:11:07]} 15. Qxb6 axb6 {[%clk 0:11:24]} 16. a3
{[%clk 1:29:28]} 16... Na5 {[%clk 0:10:50]} 17. Bg5 {[%clk 1:31:31]} 17... Nc6
{[%clk 0:11:24]} 18. Bd2 {[%clk 1:29:28]} 18... Na5 {[%clk 0:10:50]} 19. Bg5
{[%clk 1:26:55]} 19... Nh5 20. Bxe7 {[%clk 1:26:20]} 20... Kxe7 {[%clk 0:09:49]}
21. O-O-O {[%clk 1:25:15]} 21... dxc3 {[%clk 0:09:41]} 22. Nxc3 {[%clk 1:25:05]}
22... Nf4 {[%clk 0:09:02]} 23. Rg3 {[%clk 1:24:59]} 23... Nb3+ {[%clk 0:07:54]}
24. Kb1 {[%clk 1:24:41]} 24... Nd4 {[%clk 0:07:52]} 25. Re1 {[%clk 1:23:48]}
25... Kd6 {[%clk 0:07:32]} 26. Ne2 {[%clk 1:24:00]} 26... Ndxe2 {[%clk 0:07:50]}
27. Bxe2 {[%clk 1:24:03]} 27... Rxh3 {[%clk 0:08:01]} 28. Rxh3 {[%clk 1:24:09]}
28... Nxh3 {[%clk 0:08:14]} 29. Rf1 {[%clk 1:24:21]} 29... Nf4 {[%clk 0:08:35]}
30. Rf2 {[%clk 1:24:40]} 30... Rh8 {[%clk 0:08:54]} 31. Bf1 {[%clk 1:24:14]}
31... Rh7 {[%clk 0:07:32]} 32. Kc2 {[%clk 1:24:01]} 32... Ne6 {[%clk 0:06:46]}
33. h3 {[%clk 1:22:53]} 33... Ng5 {[%clk 0:06:25]} 34. Rh2 {[%clk 1:22:30]}
34... Nf3 {[%clk 0:06:37]} 35. Rf2 {[%clk 1:22:45]} 35... Nd4+ {[%clk 0:07:02]}
36. Kb1 {[%clk 1:22:30]} 36... f5 {[%clk 0:07:05]} 37. exf5 {[%clk 1:22:40]}
37... gxf5 {[%clk 0:07:18]} 38. Bg2 {[%clk 1:22:48]} 38... Kc7 {[%clk 0:07:38]}
39. Kc1 {[%clk 1:22:59]} 39... f4 {[%clk 0:07:46]} 40. Kd2 {[%clk 1:22:54]}
40... Kd6 {[%clk 0:06:29]} 41. Kc3 {[%clk 1:22:46]} 41... b5 {[%clk 0:05:12]}
42. Kd2 {[%clk 1:23:04]} 42... b6 {[%clk 0:05:34]} 43. Kc3 Ne6 {[%clk 0:05:11]}
44. Kd2 {[%clk 1:23:18]} 44... Ng5 {[%clk 0:05:20]} 45. Ke2 {[%clk 1:23:05]}
45... Nxh3 {[%clk 0:05:39]} 46. Bxh3 {[%clk 1:23:27]} 46... Rxh3 {[%clk
0:06:03]} 47. Rf3 {[%clk 1:23:19]} 47... Rxf3 {[%clk 0:06:26]} 48. Kxf3 {[%clk
1:23:45]} 48... Kd5 {[%clk 0:06:47]} 49. b3 {[%clk 1:24:08]} 49... Kd4 {[%clk
0:07:10]} 50. Ke2 {[%clk 1:24:18]} 50... e4 {[%clk 0:07:32]} 51. dxe4 {[%clk
1:24:36]} 51... Kxe4 {[%clk 0:07:56]} 52. Kd2 {[%clk 1:24:54]} 52... Kf3 {[%clk
0:08:20]} 53. Ke1 {[%clk 1:25:08]} 53... Kg2 {[%clk 0:08:37]} 54. Ke2 {[%clk
1:25:29]} 54... f3+ {[%clk 0:09:01]} 55. Ke3 {[%clk 1:25:57]} 55... f2 {[%clk
0:09:25]} 56. Ke4 {[%clk 1:26:13]} 56... f1=Q {[%clk 0:09:47]} 57. Kd5 {[%clk
1:26:40]} 57... Qf5+ {[%clk 0:10:01]} 58. Kc6 {[%clk 1:26:48]} 58... Qe6+ {[%clk
0:10:16]} 59. Kxb5 {[%clk 1:27:00]} 59... Qxb3+ {[%clk 0:10:40]} 60. Kc6 {[%clk
1:27:19]} 60... c4 {[%clk 0:11:06]} 61. a4 {[%clk 1:27:36]} 61... c3 {[%clk
0:11:08]} 62. a5 {[%clk 1:27:59]} 62... c2 {[%clk 0:11:34]} 63. axb6 {[%clk
1:28:02]} 63... c1=Q+ {[%clk 0:11:39]} 64. Kb7 {[%clk 1:28:24]} 64... Qcb1
{[%clk 0:11:49]} 65. Kc7 {[%clk 1:28:47]} 65... Qxb6+ {[%clk 0:12:14]} 66. Kd7
{[%clk 1:28:56]} 66... Qd1+ {[%clk 0:12:27]} 67. Ke7 {[%clk 1:29:16]} 67... Qe3+
{[%clk 0:12:52]} 68. Kf6 {[%clk 1:29:20]} 68... Qdf3+ {[%clk 0:13:17]} 69. Kg6
{[%clk 1:29:42]} 69... Qe6+ {[%clk 0:13:40]} 70. Kg7 {[%clk 1:29:52]} 70...
Qff7+ {[%clk 0:13:16]} 71. Kh8 {[%clk 1:30:12]} 71... Qee8# {[%clk 0:13:40]} 0-1

[Variant "Standard"]
[Site "Europe Echecs"]

[Event "Championnat du monde jeunes U10F"]
[Date "2024.11.15"]
[White "Constantin-Ciuntu, Anne-Sophie"]
[Black "Deviatkova, Diana"]
[WhiteElo "1672"]
[BlackElo "1503"]
[Round "1.21"]
[Result "1-0"]
[TimeControl "5400+30"]

1. d4 d5 2. Bf4 Bd7 3. Nf3 Nf6 4. e3 e6 5. c4 Be7 6. Nc3 Bc6 7. h3 Nbd7 8. Be2
O-O 9. Qc2 Nb6 10. b3 Re8 11. O-O Bb4 12. c5 Bxc3 13. Qxc3 Nbd7 14. b4 a6 15. a4
Ne4 16. Qb2 Ndf6 17. Ne5 h6 18. f3 Ng5 19. Bxg5 hxg5 20. b5 axb5 21. axb5 Bd7
22. Rxa8 Qxa8 23. Ra1 Qb8 24. Qd2 c6 25. b6 Qd8 26. Ra7 Bc8 27. Qe1 Nd7 28. Nxd7
Qxd7 29. Qg3 Qe7 30. Qd6 f6 31. Ra8 Kf7 32. f4 gxf4 33. Bh5+ g6 34. Bxg6+ Kxg6
35. Qxe7 Rxe7 36. Rxc8 fxe3 37. Rc7 Re8 38. Rxb7 e2 39. Kf2 e5 40. Kxe2 e4 41.
Rc7 e3 42. Rxc6 Kf5 43. b7 Ke4 44. Rc8 Rxc8 45. bxc8=Q Kxd4 46. c6 Ke4 47. c7 d4
48. Qe6+ Kf4 49. c8=Q d3+ 50. Kxd3 e2 51. Qe3# 1-0

[Variant "Standard"]
[Site "Europe Echecs"]

[Event "Championnat du monde jeunes U10F"]
[Date "2024.11.15"]
[White "Abibulla, Inzhu"]
[Black "Serradell Munoz, Silvia"]
[WhiteElo "1499"]
[BlackElo "1670"]
[Round "1.22"]
[Result "1-0"]
[TimeControl "5400+30"]

1. e4 {[%clk 1:30:57]} 1... c5 {[%clk 1:30:42]} 2. Nf3 {[%clk 1:31:14]} 2... g6
{[%clk 1:30:48]} 3. d4 {[%clk 1:30:50]} 3... cxd4 {[%clk 1:30:44]} 4. Nxd4
{[%clk 1:31:01]} 4... Bg7 {[%clk 1:30:51]} 5. Nc3 {[%clk 1:30:52]} 5... Nc6
{[%clk 1:30:59]} 6. Be3 {[%clk 1:30:26]} 6... Nf6 {[%clk 1:31:00]} 7. Be2 {[%clk
1:25:29]} 7... O-O {[%clk 1:30:17]} 8. O-O {[%clk 1:23:16]} 8... d6 {[%clk
1:29:08]} 9. f3 {[%clk 1:23:03]} 9... Qb6 {[%clk 1:28:16]} 10. Rb1 {[%clk
1:20:07]} 10... Nxe4 {[%clk 1:22:51]} 11. Nd5 {[%clk 1:14:39]} 11... Nc3 {[%clk
1:14:45]} 12. bxc3 {[%clk 1:13:11]} 12... Qd8 {[%clk 1:14:59]} 13. Nxc6 {[%clk
1:12:42]} 13... bxc6 {[%clk 1:15:18]} 14. Nf4 {[%clk 1:12:51]} 14... Bxc3 {[%clk
1:14:41]} 15. Nd3 {[%clk 1:12:32]} 15... Be6 {[%clk 1:13:43]} 16. Bh6 {[%clk
1:11:46]} 16... Re8 {[%clk 1:12:46]} 17. Bd2 {[%clk 1:07:17]} 17... Bd4+ {[%clk
1:12:13]} 18. Kh1 {[%clk 1:07:15]} 18... Bxa2 {[%clk 1:12:12]} 19. Rc1 {[%clk
1:07:40]} 19... c5 {[%clk 1:09:41]} 20. c3 {[%clk 1:07:45]} 20... Bg7 {[%clk
1:09:58]} 21. c4 {[%clk 1:07:15]} 21... Qb6 {[%clk 1:05:25]} 22. Qe1 {[%clk
1:00:31]} 22... Reb8 {[%clk 1:03:55]} 23. f4 {[%clk 0:59:44]} 23... a5 {[%clk
1:02:55]} 24. f5 {[%clk 0:56:57]} 24... a4 {[%clk 1:02:40]} 25. fxg6 {[%clk
0:57:22]} 25... hxg6 {[%clk 1:03:02]} 26. Qf2 {[%clk 0:57:03]} 26... Rf8 {[%clk
1:02:41]} 27. Bc3 {[%clk 0:55:28]} 27... Bh6 {[%clk 1:02:37]} 28. Qh4 {[%clk
0:55:08]} 28... Bg7 {[%clk 1:01:54]} 29. Bxg7 {[%clk 0:54:52]} 29... Kxg7 {[%clk
1:02:13]} 30. Qxe7 {[%clk 0:54:57]} 30... d5 {[%clk 1:01:26]} 31. Qe5+ {[%clk
0:53:23]} 31... Kg8 {[%clk 1:01:00]} 32. Rf6 Qd8 {[%clk 0:58:56]} 33. Rd6 {[%clk
0:50:11]} 33... Qc7 {[%clk 0:58:40]} 34. Rxg6+ {[%clk 0:50:15]} 34... fxg6
{[%clk 0:58:59]} 35. Qxc7 {[%clk 0:50:41]} 35... Rae8 {[%clk 0:58:20]} 36. Bf3
{[%clk 0:50:06]} 36... Bxc4 {[%clk 0:58:15]} 37. Nf2 {[%clk 0:49:27]} 37... d4
{[%clk 0:57:48]} 38. Qxc5 {[%clk 0:49:05]} 38... Be2 {[%clk 0:57:28]} 39. Bd5+
{[%clk 0:48:41]} 39... Kh7 {[%clk 0:57:32]} 40. Qa7+ {[%clk 0:48:30]} 40... Kh6
{[%clk 0:57:39]} 41. Qxd4 {[%clk 0:48:48]} 41... a3 {[%clk 0:55:39]} 42. Qh4+
{[%clk 0:49:04]} 42... Bh5 {[%clk 0:56:03]} 43. h3 {[%clk 0:48:20]} 1-0

[Variant "Standard"]
[Site "Europe Echecs"]

[Event "Championnat du monde jeunes U10F"]
[Date "2024.11.15"]
[White "Wang, Yi Xuan"]
[Black "Kiss, Villo"]
[WhiteElo "1668"]
[BlackElo "1492"]
[Round "1.23"]
[Result "1-0"]
[TimeControl "5400+30"]

1. d4 Nf6 2. c4 g6 3. Nc3 d5 4. cxd5 Nxd5 5. Bd2 Bg7 6. e4 Nxc3 7. Bxc3 O-O 8.
h3 c5 9. d5 f5 10. Bxg7 Kxg7 11. e5 e6 12. d6 Nc6 13. Nf3 b5 14. h4 h5 15. Qd2
c4 16. a4 Na5 17. Nd4 a6 18. axb5 axb5 19. Nc6 Qb6 20. Nxa5 c3 21. Qxc3 b4 22.
Qc7+ Qxc7 23. dxc7 Rf7 24. Be2 Rxc7 25. O-O Rb8 26. Rac1 Rxc1 27. Rxc1 Kh6 28.
Nc6 Rb7 29. Nd8 Rb8 30. Rc7 b3 31. Nf7+ Kg7 32. Nd6+ 1-0

[Variant "Standard"]
[Site "Europe Echecs"]

[Event "Championnat du monde jeunes U10F"]
[Date "2024.11.15"]
[White "Lisboa, Maria Eduarda Mazzaroppi"]
[Black "Cetin, Beren"]
[WhiteElo "1490"]
[BlackElo "1658"]
[Round "1.24"]
[Result "0-1"]
[TimeControl "5400+30"]

1. e4 {[%clk 1:30:58]} 1... c5 {[%clk 1:30:54]} 2. Nf3 {[%clk 1:31:13]} 2... Nc6
{[%clk 1:31:11]} 3. d3 {[%clk 1:31:18]} 3... e6 {[%clk 1:30:53]} 4. Nbd2 {[%clk
1:30:41]} 4... d5 {[%clk 1:31:04]} 5. g3 {[%clk 1:29:57]} 5... Nf6 {[%clk
1:29:28]} 6. Bg2 {[%clk 1:29:29]} 6... Be7 {[%clk 1:25:40]} 7. O-O {[%clk
1:29:22]} 7... O-O {[%clk 1:23:42]} 8. Re1 {[%clk 1:24:29]} 8... Qc7 {[%clk
1:21:52]} 9. Qe2 {[%clk 1:22:05]} 9... d4 {[%clk 1:17:08]} 10. Nf1 {[%clk
1:19:56]} 10... b5 {[%clk 1:16:04]} 11. h4 {[%clk 1:14:50]} 11... e5 {[%clk
1:05:14]} 12. N1h2 {[%clk 1:05:56]} 12... Ng4 {[%clk 1:02:12]} 13. Bd2 {[%clk
0:57:46]} 13... Nxh2 {[%clk 0:57:33]} 14. Nxh2 {[%clk 0:57:46]} 14... Be6 {[%clk
0:55:43]} 15. Bf3 {[%clk 0:53:29]} 15... c4 {[%clk 0:51:30]} 16. a3 {[%clk
0:45:36]} 16... a5 {[%clk 0:45:39]} 17. Bg4 {[%clk 0:39:43]} 17... Nd8 {[%clk
0:45:15]} 18. Bxe6 {[%clk 0:38:28]} 18... Nxe6 {[%clk 0:44:29]} 19. Qg4 {[%clk
0:31:28]} 19... cxd3 {[%clk 0:40:16]} 20. cxd3 {[%clk 0:29:04]} 20... Qc2 {[%clk
0:40:36]} 21. Qe2 {[%clk 0:28:10]} 21... Nc5 {[%clk 0:39:57]} 22. Rec1 {[%clk
0:18:41]} 22... Qxd3 {[%clk 0:40:05]} 23. Qxd3 {[%clk 0:18:39]} 23... Nxd3
{[%clk 0:40:26]} 24. Rc7 {[%clk 0:18:03]} 24... Bd6 {[%clk 0:39:45]} 25. Rb7
{[%clk 0:10:26]} 25... Rfb8 {[%clk 0:39:22]} 26. Rd7 {[%clk 0:09:29]} 26... Bf8
{[%clk 0:39:32]} 27. Rb1 {[%clk 0:09:40]} 27... Nc5 {[%clk 0:39:51]} 28. Rd5
{[%clk 0:09:50]} 28... Nxe4 {[%clk 0:40:15]} 29. Be1 {[%clk 0:10:00]} 29... f6
{[%clk 0:40:10]} 30. f3 {[%clk 0:09:31]} 30... Nd6 {[%clk 0:40:32]} 31. b4
{[%clk 0:09:42]} 31... a4 {[%clk 0:40:46]} 32. Nf1 {[%clk 0:08:52]} 32... Nc4
{[%clk 0:41:03]} 33. Ra1 {[%clk 0:09:18]} 33... Kf7 {[%clk 0:41:00]} 34. Rd7+
{[%clk 0:07:50]} 34... Ke6 {[%clk 0:41:21]} 35. Rc7 {[%clk 0:08:14]} 35... Kd6
{[%clk 0:41:15]} 36. Rf7 {[%clk 0:08:25]} 36... Ke6 {[%clk 0:41:34]} 37. Rc7
{[%clk 0:08:45]} 37... Be7 {[%clk 0:41:01]} 38. Nd2 {[%clk 0:07:27]} 38... Kd6
{[%clk 0:40:30]} 39. Rc5 {[%clk 0:07:48]} 39... Kd7 {[%clk 0:40:42]} 40. Ne4
{[%clk 0:07:43]} 40... Bxc5 {[%clk 0:40:42]} 41. Nxc5+ {[%clk 0:08:09]} 41...
Kd6 {[%clk 0:40:01]} 42. Ne4+ {[%clk 0:08:27]} 42... Kd5 {[%clk 0:40:22]} 43.
Nf2 {[%clk 0:08:42]} 43... f5 {[%clk 0:40:33]} 44. Nd3 {[%clk 0:09:03]} 44...
Rc8 {[%clk 0:40:17]} 45. Bf2 {[%clk 0:09:12]} 45... Nd2 {[%clk 0:40:26]} 46. Kg2
{[%clk 0:08:58]} 46... Rc3 {[%clk 0:40:33]} 47. Ne1 {[%clk 0:09:14]} 47... Nb3
{[%clk 0:40:28]} 48. Rb1 {[%clk 0:09:34]} 48... Rc1 {[%clk 0:40:48]} 49. Rb2
{[%clk 0:09:57]} 49... e4 {[%clk 0:41:11]} 50. fxe4+ {[%clk 0:09:59]} 50... fxe4
{[%clk 0:41:34]} 51. Re2 {[%clk 0:10:20]} 51... e3 {[%clk 0:41:45]} 52. Bg1
{[%clk 0:10:44]} 52... Ke4 {[%clk 0:41:28]} 53. Nf3 {[%clk 0:08:00]} 53... Rf8
{[%clk 0:41:11]} 54. Ng5+ {[%clk 0:08:22]} 54... Kd3 {[%clk 0:41:35]} 55. Ra2
{[%clk 0:08:41]} 55... Rc2+ 0-1

[Variant "Standard"]
[Site "Europe Echecs"]

[Event "Championnat du monde jeunes U10F"]
[Date "2024.11.15"]
[White "Sholpanbek, Zhansaya"]
[Black "Zhang, Weiai"]
[WhiteElo "1657"]
[BlackElo "1488"]
[Round "1.25"]
[Result "1-0"]
[TimeControl "5400+30"]

1. e4 {[%clk 1:30:51]} 1... c5 {[%clk 1:30:53]} 2. Nf3 {[%clk 1:31:13]} 2... d6
{[%clk 1:31:16]} 3. Bb5+ {[%clk 1:31:16]} 3... Bd7 {[%clk 1:31:38]} 4. Bxd7+
Qxd7 5. c4 {[%clk 1:31:18]} 5... g6 {[%clk 1:22:55]} 6. Nc3 {[%clk 1:30:30]}
6... Bg7 {[%clk 1:22:25]} 7. d4 {[%clk 1:29:56]} 7... cxd4 {[%clk 1:20:48]} 8.
Nxd4 {[%clk 1:30:16]} 8... Nc6 {[%clk 1:19:55]} 9. Be3 {[%clk 1:29:13]} 9... Nf6
{[%clk 1:19:21]} 10. f3 {[%clk 1:29:22]} 10... O-O {[%clk 1:18:19]} 11. O-O
{[%clk 1:29:16]} 11... Rac8 {[%clk 1:12:36]} 12. b3 {[%clk 1:28:56]} 12... Rfd8
{[%clk 1:06:10]} 13. Rc1 {[%clk 1:25:24]} 13... a6 {[%clk 0:55:53]} 14. Na4
{[%clk 1:21:05]} 14... Qe8 {[%clk 0:47:54]} 15. Nb6 {[%clk 1:20:32]} 15... Rc7
{[%clk 0:46:50]} 16. Qd2 {[%clk 1:18:47]} 16... e6 {[%clk 0:39:59]} 17. Rfd1
{[%clk 1:01:42]} 17... d5 18. Nxc6 {[%clk 0:59:35]} 18... Rxc6 {[%clk 0:31:27]}
19. cxd5 {[%clk 0:48:34]} 19... exd5 {[%clk 0:30:45]} 20. exd5 {[%clk 0:44:55]}
20... Nxd5 {[%clk 0:14:51]} 21. Rxc6 {[%clk 0:43:55]} 21... bxc6 {[%clk
0:14:24]} 22. Bf2 {[%clk 0:39:49]} 22... Bf6 {[%clk 0:11:28]} 23. Nxd5 {[%clk
0:34:54]} 23... Rxd5 {[%clk 0:11:19]} 24. Qc2 {[%clk 0:34:50]} 24... Qd7 {[%clk
0:09:30]} 25. Rxd5 {[%clk 0:33:19]} 25... Qxd5 {[%clk 0:09:50]} 26. Qe2 {[%clk
0:32:40]} 26... Qe5 {[%clk 0:07:26]} 27. Qxe5 {[%clk 0:30:07]} 27... Bxe5 {[%clk
0:07:42]} 28. Bg3 {[%clk 0:30:33]} 28... Bxg3 {[%clk 0:07:36]} 29. hxg3 {[%clk
0:30:59]} 29... Kf8 {[%clk 0:07:50]} 30. Kf2 {[%clk 0:31:25]} 30... Ke7 {[%clk
0:08:10]} 31. Ke3 {[%clk 0:31:42]} 31... Kd6 {[%clk 0:08:16]} 32. Kd4 {[%clk
0:31:47]} 32... c5+ {[%clk 0:07:39]} 33. Kc4 {[%clk 0:32:11]} 33... Kc6 {[%clk
0:08:04]} 34. g4 {[%clk 0:31:48]} 34... g5 {[%clk 0:06:45]} 35. g3 {[%clk
0:31:12]} 35... h6 {[%clk 0:06:42]} 36. f4 {[%clk 0:30:44]} 36... gxf4 {[%clk
0:06:37]} 37. gxf4 {[%clk 0:31:12]} 37... f6 {[%clk 0:06:59]} 38. a4 {[%clk
0:21:58]} 38... Kd6 {[%clk 0:05:47]} 39. b4 {[%clk 0:21:32]} 39... cxb4 {[%clk
0:05:20]} 40. Kxb4 {[%clk 0:21:58]} 40... Kc6 {[%clk 0:05:43]} 41. Kc4 {[%clk
0:22:23]} 41... a5 {[%clk 0:05:46]} 42. Kd4 {[%clk 0:22:45]} 42... Kd6 {[%clk
0:05:14]} 43. Ke4 {[%clk 0:19:28]} 43... Kc5 {[%clk 0:03:26]} 44. Kf5 {[%clk
0:19:53]} 44... Kb4 {[%clk 0:03:52]} 45. Kxf6 {[%clk 0:20:12]} 45... Kxa4 {[%clk
0:04:15]} 46. g5 {[%clk 0:20:06]} 46... hxg5 {[%clk 0:03:53]} 47. fxg5 {[%clk
0:20:32]} 47... Kb4 {[%clk 0:03:47]} 48. g6 {[%clk 0:20:57]} 48... a4 {[%clk
0:04:11]} 49. g7 {[%clk 0:21:24]} 1-0

[Variant "Standard"]
[Site "Europe Echecs"]

[Event "Championnat du monde jeunes U10F"]
[Date "2024.11.15"]
[White "Pambieri, Nicole"]
[Black "Trzcinska, Weronika"]
[WhiteElo "1482"]
[BlackElo "1653"]
[Round "1.26"]
[Result "0-1"]
[TimeControl "5400+30"]

1. c4 e5 2. g3 Nf6 3. Bg2 Nc6 4. Nc3 Be7 5. Nf3 O-O 6. O-O d6 7. d3 Be6 8. a3 a5
9. Bd2 Qc8 10. Nb5 Nd8 11. Qe1 c6 12. Nc3 Bh3 13. Bxh3 Qxh3 14. Na4 b5 15. cxb5
cxb5 16. Nb6 Ra6 17. Bxa5 Nb7 18. b4 Bd8 19. a4 Nxa5 20. bxa5 Bxb6 21. axb5 Bxa5
22. Rxa5 Rb6 23. e4 Rfb8 24. Qa1 Ng4 25. Ra8 g6 26. Rxb8+ Rxb8 27. Qa6 f5 28. b6
fxe4 29. dxe4 Rf8 30. Qa2+ Kg7 31. Re1 Rxf3 32. Rb1 Qxh2+ 33. Kf1 Rxf2+ 34. Ke1
Qg1# 0-1

[Variant "Standard"]
[Site "Europe Echecs"]

[Event "Championnat du monde jeunes U10F"]
[Date "2024.11.15"]
[White "Mandukhai, Munkhbat"]
[Black "Babii, Oriiana"]
[WhiteElo "1645"]
[BlackElo "1481"]
[Round "1.27"]
[Result "1-0"]
[TimeControl "5400+30"]

1. e4 c5 2. c3 d6 3. d4 Bd7 4. Nf3 Bg4 5. Bc4 Bxf3 6. Qxf3 cxd4 7. Bxf7+ Kd7 8.
Qf5+ Kc7 9. O-O Nc6 10. Bd2 Qd7 11. Be6 Qe8 12. Na3 a6 13. Rfd1 g6 14. Qf3 Nf6
15. cxd4 Bg7 16. d5 Ne5 17. Ba5+ b6 18. Rac1+ Kb7 19. Qb3 b5 20. Rc7+ 1-0

[Variant "Standard"]
[Site "Europe Echecs"]